[Event "Titled Tuesday Blitz June 15 2021"]
[White "Pakleza, Zbigniew"]
[Black "Skatchkov, Pavel"]
[WhiteFideId "1119290"]
[BlackFideId "4121848"]
[WhiteElo "2526"]
[BlackElo "2476"]
[Result "0-1"]
[Round "05"]
[TimeControl "180+1"]
[Date "2021.06.15"]
[WhiteClock "0:00:02"]
[BlackClock "0:00:08"]

1. d4 {[%clk 0:03:00]}  Nf6 {[%clk 0:02:59]} 2. Nf3 {[%clk 0:03:00]}  e6 {[%clk 0:03:00]} 3. Bf4 {[%clk 0:03:00]}  d5 {[%clk 0:02:59]} 4. e3 {[%clk 0:03:00]}  c5 {[%clk 0:03:00]} 5. c3 {[%clk 0:03:00]}  Nc6 {[%clk 0:03:00]} 6. Nbd2 {[%clk 0:03:00]}  Bd6 {[%clk 0:03:01]} 7. Bg3 {[%clk 0:03:00]}  O-O {[%clk 0:03:00]} 8. Bd3 {[%clk 0:02:59]}  b6 {[%clk 0:03:01]} 9. Ne5 {[%clk 0:02:56]}  Ne7 {[%clk 0:03:00]} 10. f4 {[%clk 0:02:47]}  Nf5 {[%clk 0:02:59]} 11. Bf2 {[%clk 0:02:44]}  Be7 {[%clk 0:02:56]} 12. Nc6 {[%clk 0:02:38]}  Qc7 {[%clk 0:02:55]} 13. Nxe7+ {[%clk 0:02:38]}  Qxe7 {[%clk 0:02:56]} 14. Qf3 {[%clk 0:02:29]}  Qc7 {[%clk 0:02:13]} 15. e4 {[%clk 0:01:35]}  dxe4 {[%clk 0:02:01]} 16. Nxe4 {[%clk 0:01:36]}  Nd5 {[%clk 0:01:50]} 17. dxc5 {[%clk 0:01:14]}  Nxf4 {[%clk 0:01:42]} 18. Bc2 {[%clk 0:00:53]}  Bb7 {[%clk 0:01:32]} 19. O-O-O {[%clk 0:00:48]}  bxc5 {[%clk 0:01:23]} 20. g4 {[%clk 0:00:47]}  Ne7 {[%clk 0:01:11]} 21. Bg3 {[%clk 0:00:46]}  Neg6 {[%clk 0:01:11]} 22. Qe3 {[%clk 0:00:27]}  f5 {[%clk 0:00:47]} 23. gxf5 {[%clk 0:00:22]}  exf5 {[%clk 0:00:48]} 24. Nd6 {[%clk 0:00:22]}  Bxh1 {[%clk 0:00:46]} 25. Bxf4 {[%clk 0:00:22]}  Nxf4 {[%clk 0:00:33]} 26. Qxf4 {[%clk 0:00:23]}  Be4 {[%clk 0:00:30]} 27. Bb3+ {[%clk 0:00:23]}  Kh8 {[%clk 0:00:30]} 28. h4 {[%clk 0:00:22]}  Qe7 {[%clk 0:00:18]} 29. Re1 {[%clk 0:00:07]}  Rad8 {[%clk 0:00:16]} 30. Nxf5 {[%clk 0:00:04]}  Qd7 {[%clk 0:00:08]} 31. Qxe4 {[%clk 0:00:02]}  Qxf5 {[%clk 0:00:08]} 32. Qxf5 {[%clk 0:00:03]}  Rxf5 {[%clk 0:00:09]} 33. Bc2 {[%clk 0:00:03]}  Rh5 {[%clk 0:00:08]} 34. Re4 {[%clk 0:00:03]}  g5 {[%clk 0:00:08]} 35. Re5 {[%clk 0:00:01]}  Rxh4 {[%clk 0:00:08]} 36. b3 {[%clk 0:00:02]}  h6 {[%clk 0:00:08]} 37. Kb2 {[%clk 0:00:02]}  Rh2 {[%clk 0:00:07]} 38. Kb1 {[%clk 0:00:02]}  Rh1+ {[%clk 0:00:07]} 39. Kb2 {[%clk 0:00:02]}  Rd2 {[%clk 0:00:08]} 40. Re8+ {[%clk 0:00:02]}  Kg7 {[%clk 0:00:08]} 41. Re7+ {[%clk 0:00:01]}  Kf6 {[%clk 0:00:08]} 42. Rd7 {[%clk 0:00:02]}  Rxd7 {[%clk 0:00:08]} 0-1


[Site "https://www.chess.com"]

[Event "Titled Tuesday Blitz June 15 2021"]
[White "Quintiliano Pinto, Renato R."]
[Black "Jobava, Baadur"]
[WhiteFideId "2117568"]
[BlackFideId "13601520"]
[WhiteElo "2439"]
[BlackElo "2748"]
[Result "0-1"]
[Round "05"]
[TimeControl "180+1"]
[Date "2021.06.15"]
[WhiteClock "0:00:14"]
[BlackClock "0:01:29"]

1. d4 {[%clk 0:03:00]}  Nf6 {[%clk 0:02:58]} 2. c4 {[%clk 0:03:01]}  g6 {[%clk 0:02:58]} 3. Nc3 {[%clk 0:03:01]}  Bg7 {[%clk 0:02:59]} 4. e4 {[%clk 0:03:00]}  O-O {[%clk 0:02:59]} 5. Nf3 {[%clk 0:03:00]}  c6 {[%clk 0:03:00]} 6. Be2 {[%clk 0:02:42]}  d5 {[%clk 0:02:59]} 7. e5 {[%clk 0:02:43]}  Ne8 {[%clk 0:03:00]} 8. O-O {[%clk 0:02:42]}  dxc4 {[%clk 0:02:59]} 9. Bxc4 {[%clk 0:02:42]}  Nc7 {[%clk 0:03:00]} 10. h3 {[%clk 0:02:39]}  Nd7 {[%clk 0:03:00]} 11. Re1 {[%clk 0:02:37]}  Nb6 {[%clk 0:03:00]} 12. Bf1 {[%clk 0:02:36]}  f6 {[%clk 0:02:51]} 13. Bf4 {[%clk 0:02:29]}  Ncd5 {[%clk 0:02:48]} 14. Bg3 {[%clk 0:02:25]}  Kh8 {[%clk 0:02:47]} 15. Qd2 {[%clk 0:02:22]}  Re8 {[%clk 0:02:31]} 16. Rad1 {[%clk 0:01:47]}  Be6 {[%clk 0:02:29]} 17. Ne4 {[%clk 0:01:45]}  Bg8 {[%clk 0:02:28]} 18. Nc5 {[%clk 0:01:42]}  Nd7 {[%clk 0:02:20]} 19. e6 {[%clk 0:01:26]}  Nxc5 {[%clk 0:02:19]} 20. dxc5 {[%clk 0:01:27]}  Qc8 {[%clk 0:02:08]} 21. Nd4 {[%clk 0:01:16]}  Rd8 {[%clk 0:02:02]} 22. Qc2 {[%clk 0:01:13]}  f5 {[%clk 0:01:56]} 23. Be5 {[%clk 0:01:10]}  Bxe5 {[%clk 0:01:56]} 24. Rxe5 {[%clk 0:01:11]}  Qc7 {[%clk 0:01:57]} 25. Nf3 {[%clk 0:01:03]}  Nf6 {[%clk 0:01:56]} 26. Ree1 {[%clk 0:00:55]}  Kg7 {[%clk 0:01:56]} 27. Bc4 {[%clk 0:00:52]}  Rxd1 {[%clk 0:01:55]} 28. Rxd1 {[%clk 0:00:52]}  Rd8 {[%clk 0:01:56]} 29. b4 {[%clk 0:00:45]}  Rxd1+ {[%clk 0:01:50]} 30. Qxd1 {[%clk 0:00:46]}  Qf4 {[%clk 0:01:50]} 31. Qc2 {[%clk 0:00:33]}  h6 {[%clk 0:01:43]} 32. a3 {[%clk 0:00:32]}  g5 {[%clk 0:01:42]} 33. Be2 {[%clk 0:00:28]}  Bxe6 {[%clk 0:01:42]} 34. Qc3 {[%clk 0:00:24]}  Bd5 {[%clk 0:01:37]} 35. g3 {[%clk 0:00:18]}  Qe4 {[%clk 0:01:36]} 36. Kf1 {[%clk 0:00:15]}  g4 {[%clk 0:01:28]} 37. hxg4 {[%clk 0:00:14]}  fxg4 {[%clk 0:01:29]} 38. Ng1 {[%clk 0:00:14]}  Qg2+ {[%clk 0:01:29]} 0-1


[Site "https://www.chess.com"]

[Event "Titled Tuesday Blitz June 15 2021"]
[White "Rud_Makarian"]
[Black "Sztokbant, Bernardo Vainzoff"]
[BlackFideId "2115956"]
[WhiteElo "2750"]
[BlackElo "2264"]
[Result "1-0"]
[Round "05"]
[TimeControl "180+1"]
[Date "2021.06.15"]
[WhiteClock "0:01:55"]
[BlackClock "0:00:01"]

1. e4 {[%clk 0:02:57]}  c6 {[%clk 0:02:58]} 2. Nc3 {[%clk 0:02:57]}  d5 {[%clk 0:02:59]} 3. Nf3 {[%clk 0:02:57]}  Bg4 {[%clk 0:02:57]} 4. h3 {[%clk 0:02:57]}  Bxf3 {[%clk 0:02:57]} 5. Qxf3 {[%clk 0:02:58]}  e6 {[%clk 0:02:58]} 6. d3 {[%clk 0:02:58]}  Nf6 {[%clk 0:02:58]} 7. g4 {[%clk 0:02:58]}  Be7 {[%clk 0:02:58]} 8. Bg2 {[%clk 0:02:59]}  Nbd7 {[%clk 0:02:53]} 9. O-O {[%clk 0:02:59]}  O-O {[%clk 0:02:40]} 10. Qg3 {[%clk 0:02:51]}  dxe4 {[%clk 0:02:20]} 11. dxe4 {[%clk 0:02:44]}  Qa5 {[%clk 0:02:11]} 12. f4 {[%clk 0:02:44]}  Rfd8 {[%clk 0:02:04]} 13. e5 {[%clk 0:02:43]}  Ne8 {[%clk 0:02:03]} 14. Kh1 {[%clk 0:02:40]}  Nf8 {[%clk 0:02:01]} 15. Ne4 {[%clk 0:02:38]}  Rd7 {[%clk 0:01:55]} 16. f5 {[%clk 0:02:35]}  Rad8 {[%clk 0:01:33]} 17. f6 {[%clk 0:02:33]}  gxf6 {[%clk 0:01:23]} 18. exf6 {[%clk 0:02:34]}  Bd6 {[%clk 0:01:01]} 19. Nxd6 {[%clk 0:02:30]}  Rxd6 {[%clk 0:01:01]} 20. Bf4 {[%clk 0:02:28]}  Rd4 {[%clk 0:00:54]} 21. Be5 {[%clk 0:02:28]}  Rd2 {[%clk 0:00:52]} 22. Bc3 {[%clk 0:02:28]}  Qg5 {[%clk 0:00:46]} 23. h4 {[%clk 0:02:24]}  Qg6 {[%clk 0:00:46]} 24. Bxd2 {[%clk 0:02:19]}  Rxd2 {[%clk 0:00:46]} 25. g5 {[%clk 0:02:19]}  Qxc2 {[%clk 0:00:41]} 26. Rac1 {[%clk 0:02:18]}  Qxb2 {[%clk 0:00:41]} 27. Rb1 {[%clk 0:02:18]}  Qxa2 {[%clk 0:00:41]} 28. Rxb7 {[%clk 0:02:18]}  Nd6 {[%clk 0:00:39]} 29. Rb8 {[%clk 0:02:17]}  e5 {[%clk 0:00:29]} 30. Rfb1 {[%clk 0:02:11]}  Qe6 {[%clk 0:00:05]} 31. Rxf8+ {[%clk 0:02:05]}  Kxf8 {[%clk 0:00:06]} 32. Rb8+ {[%clk 0:02:05]}  Nc8 {[%clk 0:00:07]} 33. Qh3 {[%clk 0:01:55]}  Rd1+ {[%clk 0:00:05]} 34. Kh2 {[%clk 0:01:56]}  Qxh3+ {[%clk 0:00:06]} 35. Bxh3 {[%clk 0:01:56]}  Rd8 {[%clk 0:00:07]} 36. Rxc8 {[%clk 0:01:55]}  Rxc8 {[%clk 0:00:07]} 37. Bxc8 {[%clk 0:01:56]}  a5 {[%clk 0:00:04]} 38. Ba6 {[%clk 0:01:55]}  a4 {[%clk 0:00:03]} 39. Kg3 {[%clk 0:01:55]}  a3 {[%clk 0:00:03]} 40. Bc4 {[%clk 0:01:55]}  Ke8 {[%clk 0:00:02]} 41. Kf3 {[%clk 0:01:55]}  Kf8 {[%clk 0:00:01]} 42. Ke4 {[%clk 0:01:55]} 1-0


[Site "https://www.chess.com"]

[Event "Titled Tuesday Blitz June 15 2021"]
[White "Rustemov, Alexander"]
[Black "Davtyan, David Arm."]
[WhiteFideId "4119002"]
[BlackFideId "13310046"]
[WhiteElo "2709"]
[BlackElo "2028"]
[Result "1-0"]
[Round "05"]
[TimeControl "180+1"]
[Date "2021.06.15"]
[WhiteClock "0:01:35"]
[BlackClock "0:01:08"]

1. d4 {[%clk 0:03:00]}  Nf6 {[%clk 0:02:49]} 2. c4 {[%clk 0:03:00]}  g6 {[%clk 0:02:49]} 3. Nf3 {[%clk 0:02:59]}  d5 {[%clk 0:02:50]} 4. cxd5 {[%clk 0:02:58]}  Bg7 {[%clk 0:02:49]} 5. Qa4+ {[%clk 0:02:55]}  Nbd7 {[%clk 0:02:44]} 6. Nc3 {[%clk 0:02:53]}  O-O {[%clk 0:02:39]} 7. e4 {[%clk 0:02:52]}  Nb6 {[%clk 0:02:32]} 8. Qb3 {[%clk 0:02:51]}  e6 {[%clk 0:02:33]} 9. dxe6 {[%clk 0:02:50]}  Bxe6 {[%clk 0:02:33]} 10. Qc2 {[%clk 0:02:47]}  Bg4 {[%clk 0:02:31]} 11. Be3 {[%clk 0:02:45]}  Re8 {[%clk 0:02:25]} 12. Be2 {[%clk 0:02:39]}  Bxf3 {[%clk 0:02:18]} 13. Bxf3 {[%clk 0:02:37]}  Nc4 {[%clk 0:02:18]} 14. O-O {[%clk 0:02:35]}  Nxe3 {[%clk 0:02:18]} 15. fxe3 {[%clk 0:02:36]}  c5 {[%clk 0:02:18]} 16. e5 {[%clk 0:02:31]}  Nd7 {[%clk 0:02:08]} 17. Bxb7 {[%clk 0:02:23]}  cxd4 {[%clk 0:02:09]} 18. exd4 {[%clk 0:02:15]}  Nxe5 {[%clk 0:02:01]} 19. Bxa8 {[%clk 0:02:10]}  Qxd4+ {[%clk 0:02:00]} 20. Qf2 {[%clk 0:02:04]}  Qxf2+ {[%clk 0:01:59]} 21. Rxf2 {[%clk 0:02:04]}  Rxa8 {[%clk 0:01:59]} 22. Rd1 {[%clk 0:02:02]}  Nc4 {[%clk 0:01:58]} 23. Rd7 {[%clk 0:01:56]}  Nxb2 {[%clk 0:01:47]} 24. Rxb2 {[%clk 0:01:51]}  Bxc3 {[%clk 0:01:45]} 25. Rbb7 {[%clk 0:01:52]}  Rf8 {[%clk 0:01:35]} 26. Rxa7 {[%clk 0:01:51]}  Kg7 {[%clk 0:01:26]} 27. g3 {[%clk 0:01:48]}  Kh6 {[%clk 0:01:19]} 28. Rxf7 {[%clk 0:01:43]}  Rb8 {[%clk 0:01:11]} 29. Rxh7+ {[%clk 0:01:41]}  Kg5 {[%clk 0:01:10]} 30. Kg2 {[%clk 0:01:39]}  Rb2+ {[%clk 0:01:07]} 31. Kf3 {[%clk 0:01:39]}  Bd4 {[%clk 0:01:08]} 32. h4+ {[%clk 0:01:35]} 1-0


[Site "https://www.chess.com"]

[Event "Titled Tuesday Blitz June 15 2021"]
[White "Shapkin, Anatoliy"]
[Black "Lehtosaari, Mauri"]
[WhiteFideId "34108332"]
[BlackFideId "501999"]
[WhiteElo "2223"]
[BlackElo "2461"]
[Result "1-0"]
[Round "05"]
[TimeControl "180+1"]
[Date "2021.06.15"]
[WhiteClock "0:02:41"]
[BlackClock "0:01:32"]

1. d4 {[%clk 0:03:00]}  d5 {[%clk 0:03:00]} 2. c4 {[%clk 0:03:00]}  c6 {[%clk 0:03:00]} 3. cxd5 {[%clk 0:03:00]}  cxd5 {[%clk 0:03:01]} 4. Nf3 {[%clk 0:02:59]}  Nf6 {[%clk 0:03:01]} 5. Nc3 {[%clk 0:02:59]}  Nc6 {[%clk 0:03:02]} 6. Bf4 {[%clk 0:02:59]}  a6 {[%clk 0:03:02]} 7. e3 {[%clk 0:02:59]}  Bg4 {[%clk 0:02:57]} 8. h3 {[%clk 0:02:57]}  Bxf3 {[%clk 0:02:56]} 9. Qxf3 {[%clk 0:02:58]}  e6 {[%clk 0:02:56]} 10. Bd3 {[%clk 0:02:57]}  Rc8 {[%clk 0:02:55]} 11. O-O {[%clk 0:02:56]}  Be7 {[%clk 0:02:55]} 12. Rac1 {[%clk 0:02:55]}  b5 {[%clk 0:02:54]} 13. a4 {[%clk 0:02:55]}  b4 {[%clk 0:02:37]} 14. Nb1 {[%clk 0:02:54]}  Qb6 {[%clk 0:02:28]} 15. Nd2 {[%clk 0:02:53]}  O-O {[%clk 0:02:27]} 16. Qe2 {[%clk 0:02:49]}  Ra8 {[%clk 0:01:45]} 17. Nb3 {[%clk 0:02:48]}  Rfc8 {[%clk 0:01:41]} 18. Rc2 {[%clk 0:02:44]}  Na5 {[%clk 0:01:37]} 19. Nxa5 {[%clk 0:02:43]}  Qxa5 {[%clk 0:01:38]} 20. Rfc1 {[%clk 0:02:41]}  Rxc2 {[%clk 0:01:37]} 21. Qxc2 {[%clk 0:02:42]}  g6 {[%clk 0:01:32]} 22. Bc7 {[%clk 0:02:41]} 1-0


[Site "https://www.chess.com"]

[Event "Titled Tuesday Blitz June 15 2021"]
[White "Shevchenko, Kirill"]
[Black "Tejedor Fuente, Enrique"]
[WhiteFideId "14129574"]
[BlackFideId "2299100"]
[WhiteElo "2569"]
[BlackElo "2535"]
[Result "1-0"]
[Round "05"]
[TimeControl "180+1"]
[Date "2021.06.15"]
[WhiteClock "0:00:11"]
[BlackClock "0:00:04"]

1. f4 {[%clk 0:03:00]}  g6 {[%clk 0:02:58]} 2. Nf3 {[%clk 0:02:49]}  Bg7 {[%clk 0:02:59]} 3. g3 {[%clk 0:02:50]}  d6 {[%clk 0:02:58]} 4. Bg2 {[%clk 0:02:17]}  c5 {[%clk 0:02:56]} 5. O-O {[%clk 0:02:06]}  Nf6 {[%clk 0:02:55]} 6. d3 {[%clk 0:02:00]}  O-O {[%clk 0:02:56]} 7. e4 {[%clk 0:02:00]}  Nc6 {[%clk 0:02:56]} 8. Nc3 {[%clk 0:02:01]}  Rb8 {[%clk 0:02:56]} 9. h3 {[%clk 0:02:00]}  b5 {[%clk 0:02:55]} 10. g4 {[%clk 0:02:00]}  b4 {[%clk 0:02:55]} 11. Ne2 {[%clk 0:02:01]}  Ba6 {[%clk 0:02:55]} 12. Nd2 {[%clk 0:01:25]}  Nd7 {[%clk 0:02:14]} 13. a3 {[%clk 0:01:20]}  Bb5 {[%clk 0:01:39]} 14. a4 {[%clk 0:01:17]}  Ba6 {[%clk 0:01:37]} 15. Rb1 {[%clk 0:01:17]}  b3 {[%clk 0:01:23]} 16. c4 {[%clk 0:01:03]}  Rb4 {[%clk 0:01:16]} 17. Ra1 {[%clk 0:00:50]}  Qa5 {[%clk 0:01:08]} 18. e5 {[%clk 0:00:40]}  Bb7 {[%clk 0:01:03]} 19. exd6 {[%clk 0:00:22]}  exd6 {[%clk 0:00:58]} 20. Ne4 {[%clk 0:00:23]}  Qc7 {[%clk 0:00:49]} 21. Bd2 {[%clk 0:00:21]}  Bxb2 {[%clk 0:00:44]} 22. Rb1 {[%clk 0:00:21]}  Bg7 {[%clk 0:00:42]} 23. Bxb4 {[%clk 0:00:21]}  cxb4 {[%clk 0:00:42]} 24. d4 {[%clk 0:00:18]}  f5 {[%clk 0:00:37]} 25. Ng5 {[%clk 0:00:17]}  Ne7 {[%clk 0:00:26]} 26. Ne6 {[%clk 0:00:17]}  Qxc4 {[%clk 0:00:21]} 27. Nxf8 {[%clk 0:00:16]}  Bxg2 {[%clk 0:00:20]} 28. Nxd7 {[%clk 0:00:15]}  Bxf1 {[%clk 0:00:15]} 29. Kxf1 {[%clk 0:00:15]}  Qc2 {[%clk 0:00:11]} 30. Qxc2 {[%clk 0:00:14]}  bxc2 {[%clk 0:00:11]} 31. Rxb4 {[%clk 0:00:14]}  Nd5 {[%clk 0:00:10]} 32. Rb8+ {[%clk 0:00:14]}  Kf7 {[%clk 0:00:09]} 33. Rc8 {[%clk 0:00:15]}  fxg4 {[%clk 0:00:05]} 34. hxg4 {[%clk 0:00:15]}  Ke7 {[%clk 0:00:05]} 35. Nb8 {[%clk 0:00:14]}  h5 {[%clk 0:00:02]} 36. gxh5 {[%clk 0:00:14]}  gxh5 {[%clk 0:00:03]} 37. Kg1 {[%clk 0:00:14]}  Ne3 {[%clk 0:00:03]} 38. Nc6+ {[%clk 0:00:13]}  Kd7 {[%clk 0:00:03]} 39. Nxa7 {[%clk 0:00:14]}  h4 {[%clk 0:00:02]} 40. Rc3 {[%clk 0:00:11]}  Nf5 {[%clk 0:00:01]} 41. Rxc2 {[%clk 0:00:11]}  Nxd4 {[%clk 0:00:02]} 42. Nxd4 {[%clk 0:00:06]}  Bxd4+ {[%clk 0:00:01]} 43. Kg2 {[%clk 0:00:06]}  Bxa7 {[%clk 0:00:02]} 44. Kh3 {[%clk 0:00:07]}  Be3 {[%clk 0:00:02]} 45. f5 {[%clk 0:00:07]}  Bg5 {[%clk 0:00:03]} 46. a5 {[%clk 0:00:07]}  d5 {[%clk 0:00:02]} 47. a6 {[%clk 0:00:07]}  Be3 {[%clk 0:00:03]} 48. f6 {[%clk 0:00:07]}  Bb6 {[%clk 0:00:02]} 49. f7 {[%clk 0:00:07]}  Ke7 {[%clk 0:00:02]} 50. a7 {[%clk 0:00:07]}  Bxa7 {[%clk 0:00:02]} 51. Rc7+ {[%clk 0:00:07]}  Kf8 {[%clk 0:00:02]} 52. Rxa7 {[%clk 0:00:08]}  d4 {[%clk 0:00:03]} 53. Rd7 {[%clk 0:00:08]}  d3 {[%clk 0:00:04]} 54. Kxh4 {[%clk 0:00:08]}  Kg7 {[%clk 0:00:02]} 55. Rxd3 {[%clk 0:00:08]}  Kxf7 {[%clk 0:00:02]} 56. Kg5 {[%clk 0:00:09]}  Ke6 {[%clk 0:00:02]} 57. Kf4 {[%clk 0:00:09]}  Kf6 {[%clk 0:00:02]} 58. Rd6+ {[%clk 0:00:09]}  Ke7 {[%clk 0:00:03]} 59. Ke5 {[%clk 0:00:10]}  Kf7 {[%clk 0:00:03]} 60. Kf5 {[%clk 0:00:10]}  Ke7 {[%clk 0:00:03]} 61. Rd5 {[%clk 0:00:11]}  Ke8 {[%clk 0:00:04]} 62. Kf6 {[%clk 0:00:11]} 1-0


[Site "https://www.chess.com"]

[Event "Titled Tuesday Blitz June 15 2021"]
[White "Shkapenko, Pavel"]
[Black "Kubicka, Anna"]
[WhiteFideId "4151933"]
[BlackFideId "1152254"]
[WhiteElo "2386"]
[BlackElo "2010"]
[Result "1-0"]
[Round "05"]
[TimeControl "180+1"]
[Date "2021.06.15"]
[WhiteClock "0:00:05"]
[BlackClock "0:00:06"]

1. e4 {[%clk 0:03:00]}  c5 {[%clk 0:02:59]} 2. c3 {[%clk 0:03:00]}  d6 {[%clk 0:03:00]} 3. d4 {[%clk 0:03:00]}  cxd4 {[%clk 0:03:01]} 4. cxd4 {[%clk 0:03:01]}  g6 {[%clk 0:03:00]} 5. Nc3 {[%clk 0:03:02]}  Bg7 {[%clk 0:03:01]} 6. h3 {[%clk 0:03:02]}  Nc6 {[%clk 0:03:01]} 7. Nf3 {[%clk 0:03:02]}  Nf6 {[%clk 0:02:59]} 8. Be2 {[%clk 0:03:01]}  O-O {[%clk 0:02:59]} 9. O-O {[%clk 0:03:02]}  a6 {[%clk 0:03:00]} 10. Be3 {[%clk 0:02:52]}  b5 {[%clk 0:03:00]} 11. d5 {[%clk 0:02:53]}  Na5 {[%clk 0:02:54]} 12. a3 {[%clk 0:02:45]}  Bd7 {[%clk 0:02:36]} 13. Nd4 {[%clk 0:02:40]}  Rc8 {[%clk 0:02:34]} 14. Qd2 {[%clk 0:02:33]}  Nc4 {[%clk 0:02:25]} 15. Bxc4 {[%clk 0:02:33]}  Rxc4 {[%clk 0:02:26]} 16. Rfc1 {[%clk 0:02:27]}  Qb8 {[%clk 0:02:07]} 17. f3 {[%clk 0:02:07]}  Rfc8 {[%clk 0:02:04]} 18. Nb3 {[%clk 0:02:07]}  b4 {[%clk 0:01:48]} 19. Ne2 {[%clk 0:01:46]}  bxa3 {[%clk 0:01:38]} 20. Rxc4 {[%clk 0:01:45]}  Rxc4 {[%clk 0:01:33]} 21. Rxa3 {[%clk 0:01:45]}  Rb4 {[%clk 0:01:23]} 22. Ned4 {[%clk 0:01:34]}  Ba4 {[%clk 0:01:16]} 23. Nc6 {[%clk 0:01:11]}  Bxc6 {[%clk 0:01:05]} 24. dxc6 {[%clk 0:01:11]}  Ne8 {[%clk 0:00:45]} 25. Qc2 {[%clk 0:00:45]}  Nc7 {[%clk 0:00:45]} 26. Kh1 {[%clk 0:00:39]}  Qb5 {[%clk 0:00:41]} 27. Ra5 {[%clk 0:00:20]}  Qf1+ {[%clk 0:00:24]} 28. Kh2 {[%clk 0:00:19]}  Be5+ {[%clk 0:00:14]} 29. Rxe5 {[%clk 0:00:19]}  dxe5 {[%clk 0:00:13]} 30. Nc5 {[%clk 0:00:18]}  Qb5 {[%clk 0:00:10]} 31. Nd7 {[%clk 0:00:11]}  Rxb2 {[%clk 0:00:08]} 32. Qc3 {[%clk 0:00:10]}  Qe2 {[%clk 0:00:07]} 33. Kg3 {[%clk 0:00:04]}  Qxg2+ {[%clk 0:00:06]} 34. Kh4 {[%clk 0:00:05]} 1-0


[Site "https://www.chess.com"]

[Event "Titled Tuesday Blitz June 15 2021"]
[White "Sjugirov, Sanan"]
[Black "David, Alexandru-Vasile"]
[WhiteFideId "4189302"]
[BlackFideId "1223453"]
[WhiteElo "2472"]
[BlackElo "2404"]
[Result "1-0"]
[Round "05"]
[TimeControl "180+1"]
[Date "2021.06.15"]
[WhiteClock "0:00:05"]
[BlackClock "0:00:03"]

1. e4 {[%clk 0:03:00]}  c5 {[%clk 0:02:59]} 2. Nf3 {[%clk 0:03:00]}  e6 {[%clk 0:03:00]} 3. d4 {[%clk 0:02:59]}  cxd4 {[%clk 0:03:01]} 4. Nxd4 {[%clk 0:02:59]}  Nf6 {[%clk 0:03:01]} 5. Nc3 {[%clk 0:02:59]}  Nc6 {[%clk 0:03:02]} 6. Ndb5 {[%clk 0:02:57]}  Bc5 {[%clk 0:03:01]} 7. Bf4 {[%clk 0:02:43]}  O-O {[%clk 0:03:00]} 8. Bc7 {[%clk 0:02:41]}  Qe7 {[%clk 0:03:00]} 9. Bd6 {[%clk 0:02:41]}  Bxd6 {[%clk 0:02:59]} 10. Qxd6 {[%clk 0:02:40]}  Qd8 {[%clk 0:02:57]} 11. Qg3 {[%clk 0:02:31]}  d5 {[%clk 0:02:47]} 12. exd5 {[%clk 0:02:29]}  exd5 {[%clk 0:02:46]} 13. O-O-O {[%clk 0:02:29]}  Be6 {[%clk 0:02:17]} 14. Be2 {[%clk 0:02:25]}  Qa5 {[%clk 0:02:09]} 15. Qc7 {[%clk 0:02:17]}  Qxc7 {[%clk 0:02:01]} 16. Nxc7 {[%clk 0:02:17]}  Rac8 {[%clk 0:02:02]} 17. N7b5 {[%clk 0:02:15]}  a6 {[%clk 0:01:50]} 18. Nd4 {[%clk 0:02:15]}  b5 {[%clk 0:01:50]} 19. Nxc6 {[%clk 0:01:53]}  Rxc6 {[%clk 0:01:51]} 20. Rd4 {[%clk 0:01:53]}  Ne4 {[%clk 0:01:45]} 21. Nxe4 {[%clk 0:01:46]}  dxe4 {[%clk 0:01:46]} 22. a4 {[%clk 0:01:45]}  Bb3 {[%clk 0:01:34]} 23. c3 {[%clk 0:01:39]}  bxa4 {[%clk 0:01:33]} 24. Rxe4 {[%clk 0:01:36]}  Rb8 {[%clk 0:01:23]} 25. Bf3 {[%clk 0:01:24]}  Rc7 {[%clk 0:01:21]} 26. Rhe1 {[%clk 0:01:23]}  Kf8 {[%clk 0:01:21]} 27. R1e3 {[%clk 0:01:19]}  Rd8 {[%clk 0:01:18]} 28. Re1 {[%clk 0:00:22]}  g6 {[%clk 0:01:17]} 29. Bd1 {[%clk 0:00:18]}  a5 {[%clk 0:00:46]} 30. Bxb3 {[%clk 0:00:15]}  axb3 {[%clk 0:00:46]} 31. Ra4 {[%clk 0:00:15]}  Rc5 {[%clk 0:00:40]} 32. Ra3 {[%clk 0:00:14]}  Rb5 {[%clk 0:00:39]} 33. Rd1 {[%clk 0:00:11]}  Re8 {[%clk 0:00:38]} 34. Ra4 {[%clk 0:00:05]}  Rbe5 {[%clk 0:00:30]} 35. Rad4 {[%clk 0:00:03]}  Re2 {[%clk 0:00:29]} 36. R4d2 {[%clk 0:00:03]}  Kg7 {[%clk 0:00:26]} 37. h3 {[%clk 0:00:02]}  a4 {[%clk 0:00:26]} 38. g3 {[%clk 0:00:01]}  Rxd2 {[%clk 0:00:23]} 39. Kxd2 {[%clk 0:00:01]}  Rd8+ {[%clk 0:00:21]} 40. Ke2 {[%clk 0:00:02]}  Re8+ {[%clk 0:00:21]} 41. Kd2 {[%clk 0:00:02]}  Rd8+ {[%clk 0:00:21]} 42. Ke2 {[%clk 0:00:02]}  Rc8 {[%clk 0:00:20]} 43. Ra1 {[%clk 0:00:02]}  Ra8 {[%clk 0:00:16]} 44. Kd3 {[%clk 0:00:03]}  Rd8+ {[%clk 0:00:14]} 45. Ke2 {[%clk 0:00:03]}  Re8+ {[%clk 0:00:14]} 46. Kd3 {[%clk 0:00:03]}  Rd8+ {[%clk 0:00:14]} 47. Ke3 {[%clk 0:00:03]}  Ra8 {[%clk 0:00:13]} 48. c4 {[%clk 0:00:03]}  a3 {[%clk 0:00:13]} 49. bxa3 {[%clk 0:00:03]}  b2 {[%clk 0:00:12]} 50. Rb1 {[%clk 0:00:03]}  Rxa3+ {[%clk 0:00:12]} 51. Kd4 {[%clk 0:00:03]}  Rb3 {[%clk 0:00:12]} 52. c5 {[%clk 0:00:03]}  Kf6 {[%clk 0:00:11]} 53. Kd5 {[%clk 0:00:03]}  Ke7 {[%clk 0:00:11]} 54. Kc6 {[%clk 0:00:03]}  Kd8 {[%clk 0:00:11]} 55. h4 {[%clk 0:00:02]}  h5 {[%clk 0:00:10]} 56. f4 {[%clk 0:00:02]}  Kc8 {[%clk 0:00:10]} 57. Kd6 {[%clk 0:00:02]}  Rd3+ {[%clk 0:00:09]} 58. Ke7 {[%clk 0:00:02]}  Rd2 {[%clk 0:00:09]} 59. Kxf7 {[%clk 0:00:02]}  Kc7 {[%clk 0:00:09]} 60. Kxg6 {[%clk 0:00:02]}  Kc6 {[%clk 0:00:09]} 61. f5 {[%clk 0:00:03]}  Rg2 {[%clk 0:00:04]} 62. f6 {[%clk 0:00:03]}  Rxg3+ {[%clk 0:00:05]} 63. Kxh5 {[%clk 0:00:03]}  Rf3 {[%clk 0:00:05]} 64. Kg6 {[%clk 0:00:03]}  Rg3+ {[%clk 0:00:05]} 65. Kh7 {[%clk 0:00:03]}  Rh3 {[%clk 0:00:05]} 66. Rxb2 {[%clk 0:00:03]}  Rxh4+ {[%clk 0:00:06]} 67. Kg7 {[%clk 0:00:03]}  Rg4+ {[%clk 0:00:06]} 68. Kf7 {[%clk 0:00:04]}  Kxc5 {[%clk 0:00:06]} 69. Re2 {[%clk 0:00:04]}  Kd6 {[%clk 0:00:06]} 70. Rd2+ {[%clk 0:00:03]}  Kc7 {[%clk 0:00:06]} 71. Ke7 {[%clk 0:00:03]}  Re4+ {[%clk 0:00:06]} 72. Kf8 {[%clk 0:00:03]}  Re1 {[%clk 0:00:06]} 73. f7 {[%clk 0:00:03]}  Rg1 {[%clk 0:00:07]} 74. Re2 {[%clk 0:00:03]}  Kd7 {[%clk 0:00:07]} 75. Rd2+ {[%clk 0:00:04]}  Kc7 {[%clk 0:00:07]} 76. Rd4 {[%clk 0:00:04]}  Rh1 {[%clk 0:00:06]} 77. Ke7 {[%clk 0:00:04]}  Re1+ {[%clk 0:00:06]} 78. Kf6 {[%clk 0:00:05]}  Rf1+ {[%clk 0:00:06]} 79. Ke6 {[%clk 0:00:05]}  Kc8 {[%clk 0:00:04]} 80. Rd5 {[%clk 0:00:05]}  Re1+ {[%clk 0:00:03]} 81. Re5 {[%clk 0:00:05]} 1-0


[Site "https://www.chess.com"]